[Event "Mitropa Cup Women 2024"]
[Site "Apolda"]
[Date "2024.02.17"]
[Round "3.7"]
[White "Vujnovic, Patricija"]
[Black "Terbe, Zsuzsanna"]
[Result "1/2-1/2"]
[ECO "C44"]
[WhiteElo "2104"]
[BlackElo "2170"]
[Annotator "RC"]
[PlyCount "186"]
[EventDate "2024.02.15"]
[EventType "team-tourn"]
[EventCountry "GER"]
[SourceTitle "playchess.com"]
[Source "ChessBase"]
[SourceQuality "1"]
[WhiteTeam "Croatia"]
[BlackTeam "Hungary"]
[WhiteTeamCountry "CRO"]
[BlackTeamCountry "HUN"]
[TimeControl "40/5400+30:1800+30"]

1. e4 {[%emt 0:00:02]} e5 {[%emt 0:00:16]} 2. d4 {[%emt 0:00:29]} exd4 {[%emt 0:00:47]} 3. c3 {[%emt 0:00:33]} dxc3 {[%emt 0:03:31]} 4. Bc4 {[%emt 0:02:00]} Nc6 {[%emt 0:02:51]} 5. Nxc3 {[%emt 0:02:15]} d6 {[%emt 0:03:52]} 6. Nf3 {[%emt 0:05:31]} Nf6 {[%emt 0:03:46]} 7. Qb3 {[%emt 0:17:24]} Qd7 {[%emt 0:06:18]} 8. e5 {[%emt 0:15:13]} dxe5 {[%emt 0:09:11]} 9. Ng5 {[%emt 0:01:09]} Nd8 {[%emt 0:00:25]} 10. Be3 {[%emt 0:04:58]} Bd6 {[%emt 0:02:13]} 11. O-O-O {[%emt 0:01:14]} O-O {[%emt 0:03:23]} 12. Nb5 {[%emt 0:04:29]} Qe7 {[%emt 0:12:41]} 13. Nxa7 {[%emt 0:14:37]} Bf5 {[%emt 0:07:13]} 14. Nb5 {[%emt 0:00:40]} h6 {[%emt 0:05:10]} 15. Nf3 {[%emt 0:00:33]} Nc6 {[%emt 0:00:53]} 16. Nh4 {[%emt 0:10:37]} Bh7 {[%emt 0:02:00]} 17. Bd3 {[%emt 0:01:23]} e4 {[%emt 0:05:34]} 18. Bb1 {[%emt 0:00:21]} g5 {[%emt 0:05:45]} 19. g3 {[%emt 0:00:05]} gxh4 {[%emt 0:02:47]} 20. Bxh6 {[%emt 0:00:47]} Rfd8 {[%emt 0:03:13]} 21. gxh4 {[%emt 0:01:34]} Bg6 {[%emt 0:01:58]} 22. Rhg1 {[%emt 0:05:17]} Kh7 {[%emt 0:01:32]} 23. Bd2 {[%emt 0:03:07]} Bc5 {[%emt 0:06:41]} 24. h5 {[%emt 0:01:43]} Nxh5 {[%emt 0:00:11]} 25. Qh3 {[%emt 0:04:23]} Bxf2 {[%emt 0:01:57]} 26. Rg5 {[%emt 0:01:43]} Rxd2 {[%emt 0:07:22]} 27. Rxh5+ {[%emt 0:00:04]} Bxh5 {[%emt 0:00:11]} 28. Qxh5+ {[%emt 0:00:09]} Kg7 {[%emt 0:00:25]} 29. Kxd2 {[%emt 0:01:27]} Rd8+ {[%emt 0:01:56]} 30. Ke2 {[%emt 0:00:07]} Rxd1 {[%emt 0:00:35]} 31. Kxd1 {[%emt 0:00:09]} Ne5 {[%emt 0:00:49]} 32. Ke2 {[%emt 0:01:30]} Qf6 {[%emt 0:00:32]} 33. Bxe4 {[%emt 0:00:15]} Ng6 {[%emt 0:00:08]} 34. Qf3 {[%emt 0:01:08]} Qxb2+ {[%emt 0:00:22]} 35. Kf1 {[%emt 0:00:19]} Qxb5+ {[%emt 0:00:24]} 36. Kxf2 {[%emt 0:00:01]} Qc5+ {[%emt 0:00:16]} 37. Kg3 {[%emt 0:01:11]} Qe5+ {[%emt 0:00:27]} 38. Kg4 {[%emt 0:00:31]} Qxh2 {[%emt 0:00:49]} 39. Bxg6 {[%emt 0:00:16]} fxg6 {[%emt 0:00:02]} 40. Qxb7 {[%emt 0:00:21]} Qe2+ {[%emt 0:00:48]} 41. Kg3 {[%emt 0:30:47]} Qd3+ {[%emt 0:31:07]} 42. Kg4 {[%emt 0:00:00]} Qd1+ {[%emt 0:00:00]} 43. Kh3 {[%emt 0:00:00]} Qf1+ {[%emt 0:00:00]} 44. Kg3 {[%emt 0:00:00]} Qg1+ {[%emt 0:00:00]} 45. Kh3 {[%emt 0:00:00]} Qe3+ {[%emt 0:00:00]} 46. Kg2 {[%emt 0:00:00]} Qd2+ {[%emt 0:00:00]} 47. Kh3 {[%emt 0:00:00]} Qc3+ {[%emt 0:00:00]} 48. Kg2 {[%emt 0:00:00]} Qd2+ {[%emt 0:00:00]} 49. Kh3 {[%emt 0:00:00]} Qe3+ {[%emt 0:00:00]} 50. Kg2 {[%emt 0:00:00]} Qe2+ {[%emt 0:00:00]} 51. Kg3 {[%emt 0:00:00]} Qe5+ {[%emt 0:00:00]} 52. Kg2 {[%emt 0:00:00]} Qg5+ {[%emt 0:00:00]} 53. Kh3 {[%emt 0:00:00]} Qf5+ {[%emt 0:00:00]} 54. Kg3 {[%emt 0:00:00]} Qd3+ {[%emt 0:00:00]} 55. Kg2 {[%emt 0:00:00]} Qc2+ {[%emt 0:00:00]} 56. Kg3 {[%emt 0:00:00]} Kf6 {[%emt 0:00:00]} 57. a4 {[%emt 0:00:00]} Qxa4 {[%emt 0:00:00]} 58. Qxc7 {[%emt 0:00:00]} Qb3+ {[%emt 0:00:00]} 59. Kg2 {[%emt 0:00:00]} Qd5+ {[%emt 0:00:00]} 60. Kg3 {[%emt 0:00:00]} Qd3+ {[%emt 0:00:00]} 61. Kg2 {[%emt 0:00:00]} Kf5 {[%emt 0:00:00]} 62. Qc8+ {[%emt 0:02:30]} Kf4 {[%emt 0:00:00]} 63. Qc7+ {[%emt 0:00:33]} Kg4 {[%emt 0:00:00]} 64. Qc8+ {[%emt 0:00:29]} Qf5 {[%emt 0:00:04]} 65. Qc4+ {[%emt 0:00:13]} Kh5 {[%emt 0:00:06]} 66. Kg3 {[%emt 0:01:40]} Qe5+ {[%emt 0:00:48]} 67. Kf3 {[%emt 0:02:19]} Qf6+ {[%emt 0:01:43]} 68. Kg3 {[%emt 0:00:36]} Qd6+ {[%emt 0:00:59]} 69. Kh3 {[%emt 0:01:42]} Qa3+ {[%emt 0:00:38]} 70. Kg2 {[%emt 0:00:10]} Qe3 {[%emt 0:01:09]} 71. Qd5+ {[%emt 0:00:47]} Kh4 {[%emt 0:01:29]} 72. Qc4+ {[%emt 0:00:54]} Kh5 {[%emt 0:00:56]} 73. Qd5+ {[%emt 0:01:13]} Kh6 {[%emt 0:00:29]} 74. Qd6 {[%emt 0:00:49]} Qg5+ {[%emt 0:00:52]} 75. Kh3 {[%emt 0:00:40]} Qf5+ {[%emt 0:00:44]} 76. Kg3 {[%emt 0:00:24]} Qg5+ {[%emt 0:00:40]} 77. Kh3 {[%emt 0:00:21]} Qe3+ {[%emt 0:00:07]} 78. Kg2 {[%emt 0:00:44]} Qe4+ {[%emt 0:00:47]} 79. Kg3 {[%emt 0:00:35]} Qf5 {[%emt 0:00:18]} 80. Kh4 {[%emt 0:01:32]} Qf2+ {[%emt 0:01:19]} 81. Kg4 {[%emt 0:00:32]} Qg1+ {[%emt 0:00:45]} 82. Kh4 {[%emt 0:00:33]} Qe1+ {[%emt 0:00:07]} 83. Kg4 {[%emt 0:00:08]} Qf2 {[%emt 0:00:06]} 84. Qc6 {[%emt 0:01:35]} Qd4+ {[%emt 0:00:51]} 85. Kg3 {[%emt 0:00:19]} Qe3+ {[%emt 0:00:03]} 86. Kg4 {[%emt 0:00:17]} Qg5+ {[%emt 0:00:47]} 87. Kh3 {[%emt 0:00:09]} Qf5+ {[%emt 0:00:06]} 88. Kg3 {[%emt 0:00:13]} Qe5+ {[%emt 0:01:00]} 89. Kg4 {[%emt 0:00:27]} Qg5+ {[%emt 0:00:05]} 90. Kh3 {[%emt 0:00:30]} Qf4 {[%emt 0:00:08]} 91. Qe6 {[%emt 0:01:15]} Kh5 {[%emt 0:01:13]} 92. Qe2+ {[%emt 0:00:19]} Kg5 {[%emt 0:00:53]} 93. Qe7+ {[%emt 0:00:03]} Qf6 {[%emt 0:07:27]} 1/2-1/2

[Event "Mitropa Cup Women 2024"]
[Site "Apolda"]
[Date "2024.02.17"]
[Round "3.8"]
[White "Karacsonyi, Kata"]
[Black "Mihaljevic, Eva"]
[Result "1-0"]
[ECO "B90"]
[WhiteElo "2087"]
[BlackElo "2043"]
[Annotator "NA RC"]
[PlyCount "115"]
[EventDate "2024.02.15"]
[EventType "team-tourn"]
[EventCountry "GER"]
[SourceTitle "playchess.com"]
[Source "ChessBase"]
[SourceQuality "1"]
[WhiteTeam "Hungary"]
[BlackTeam "Croatia"]
[WhiteTeamCountry "HUN"]
[BlackTeamCountry "CRO"]
[TimeControl "40/5400+30:1800+30"]

1. e4 {[%emt 0:00:04]} c5 {[%emt 0:00:05]} 2. Nf3 {[%emt 0:00:12]} d6 {[%emt 0:00:07]} 3. d4 {[%emt 0:00:08]} cxd4 {[%emt 0:00:22]} 4. Nxd4 {[%emt 0:00:08]} Nf6 {[%emt 0:00:06]} 5. Nc3 {[%emt 0:00:12]} a6 {[%emt 0:00:33]} 6. Rg1 {[%emt 0:00:18]} e5 {[%emt 0:01:39]} 7. Nb3 {[%emt 0:00:13]} Be7 {[%emt 0:00:57]} 8. g4 {[%emt 0:02:35]} h6 {[%emt 0:01:17]} 9. Be3 {[%emt 0:18:54]} Be6 {[%emt 0:06:29]} 10. Qf3 {[%emt 0:05:03]} b5 {[%emt 0:10:11]} 11. O-O-O {[%emt 0:02:44]} Nbd7 {[%emt 0:03:06]} 12. Kb1 {[%emt 0:12:09]} Qc7 {[%emt 0:06:11]} 13. h4 {[%emt 0:05:25]} b4 {[%emt 0:15:03]} 14. Nd5 {[%emt 0:02:58]} Bxd5 {[%emt 0:01:57]} 15. exd5 {[%emt 0:00:08]} Rc8 {[%emt 0:09:27]} 16. Rd2 {[%emt 0:08:22]} e4 {[%emt 0:06:48]} 17. Qd1 {[%emt 0:01:12]} Ne5 {[%emt 0:01:52]} 18. Bxa6 {[%emt 0:01:03]} Ra8 {[%emt 0:04:26]} 19. Be2 {[%emt 0:00:43]} Nfd7 {[%emt 0:03:26]} 20. Rd4 {[%emt 0:07:09]} Qa7 {[%emt 0:10:32]} 21. Nc1 {[%emt 0:00:18]} Nc5 {[%emt 0:05:03]} 22. Rxb4 {[%emt 0:03:11]} O-O {[%emt 0:02:26]} 23. g5 {[%emt 0:07:51]} hxg5 {[%emt 0:00:16]} 24. Bxg5 {[%emt 0:01:28]} Bxg5 {[%emt 0:02:26]} 25. Rxg5 {[%emt 0:00:08]} Rfb8 {[%emt 0:01:54]} 26. Rxb8+ {[%emt 0:04:06]} Rxb8 {[%emt 0:00:06]} 27. Qd4 {[%emt 0:03:13]} Qa5 {[%emt 0:01:37]} 28. Rg1 {[%emt 0:05:43]} Rb4 {[%emt 0:03:33]} 29. Qe3 {[%emt 0:00:48]} Na4 {[%emt 0:00:41]} 30. Nb3 {[%emt 0:00:10]} Qxd5 {[%emt 0:00:56]} 31. Qg5 {[%emt 0:00:49]} g6 {[%emt 0:00:09]} 32. Rd1 {[%emt 0:00:20]} Qe6 {[%emt 0:01:41]} 33. Qd8+ {[%emt 0:00:10]} Kg7 {[%emt 0:00:20]} 34. Qxd6 {[%emt 0:02:00]} Qxd6 {[%emt 0:00:38]} 35. Rxd6 {[%emt 0:00:02]} f5 {[%emt 0:00:52]} 36. Rd4 {[%emt 0:00:56]} Rxd4 {[%emt 0:00:12]} 37. Nxd4 {[%emt 0:00:02]} Kf6 {[%emt 0:00:41]} 38. f4 {[%emt 0:05:02]} Ng4 {[%emt 0:00:45]} 39. Bb5 {[%emt 0:02:49]} Nb6 {[%emt 0:00:29]} 40. a4 {[%emt 0:00:46]} Ne3 {[%emt 0:00:35]} 41. a5 {[%emt 0:01:46]} Nc8 {[%emt 0:00:58]} 42. Bd7 {[%emt 0:04:01]} Na7 {[%emt 0:02:20]} 43. Nb5 {[%emt 0:01:20]} Nc4 {[%emt 0:01:20]} 44. a6 {[%emt 0:16:00]} Ke7 {[%emt 0:15:55]} 45. Nxa7 {[%emt 0:00:51]} Kxd7 {[%emt 0:01:38]} 46. Nb5 {[%emt 0:00:14]} Kc6 {[%emt 0:00:17]} 47. a7 {[%emt 0:00:33]} Kb7 {[%emt 0:00:15]} 48. Kc1 {[%emt 0:01:19]} Ne3 {[%emt 0:00:47]} 49. Kd2 {[%emt 0:05:14]} Nc4+ {[%emt 0:04:58]} 50. Ke2 {[%emt 0:00:38]} Nxb2 {[%emt 0:00:49]} 51. Nd6+ {[%emt 0:00:22]} Kxa7 {[%emt 0:00:15]} 52. Nc8+ {[%emt 0:00:03]} Kb7 {[%emt 0:01:05]} 53. Ne7 {[%emt 0:00:05]} Na4 {[%emt 0:00:54]} 54. Nxg6 {[%emt 0:00:17]} Nc3+ {[%emt 0:00:53]} 55. Kd2 {[%emt 0:01:14]} Nd5 {[%emt 0:01:55]} 56. h5 {[%emt 0:00:05]} Kc7 {[%emt 0:01:18]} 57. h6 {[%emt 0:00:09]} Nf6 {[%emt 0:00:09]} 58. Nf8 {[%emt 0:00:27]} 1-0

[Event "Mitropa Cup Women 2024"]
[Site "Apolda"]
[Date "2024.02.17"]
[Round "3.9"]
[White "Iglesias, Yosha"]
[Black "Hagarova, Zuzana"]
[Result "0-1"]
[ECO "A48"]
[WhiteElo "2260"]
[BlackElo "2280"]
[Annotator "TA"]
[PlyCount "110"]
[EventDate "2024.02.15"]
[EventType "team-tourn"]
[EventCountry "GER"]
[SourceTitle "playchess.com"]
[Source "ChessBase"]
[SourceQuality "1"]
[WhiteTeam "France"]
[BlackTeam "Slovakia"]
[WhiteTeamCountry "FRA"]
[BlackTeamCountry "SVK"]
[TimeControl "40/5400+30:1800+30"]

{[%evp 17,110,3,27,10,23,10,16,0,18,11,39,42,30,23,10,0,0,0,0,0,0,-77,-70,-119,-108,-115,-106,-108,-26,-45,-39,-41,-42,-45,-39,-39,-47,-42,-41,-130,-122,-141,-129,-117,-120,-192,-193,-204,-204,-216,-204,-210,-210,-273,-262,-493,-473,-429,-296,-289,-296,-289,-253,-8029,-7656,-7872,-7525,-7283,-6841,-5527,-2544,-5414,-2386,-2300,-1346,-2181,-2952,-6954,-2260,-2260,-1400,-29967,-29970,-29969,-29970,-29972,-29972,-29974,-29975,-29977,-29978,-29975,-29976,-29976,-29977]} 1. d4 {[%emt 0:00:05]} Nf6 {[%emt 0:00:38]} 2. Bf4 {[%emt 0:00:07]} c5 {[%emt 0:00:27]} 3. e3 {[%emt 0:01:02]} g6 {[%emt 0:03:10]} 4. Nf3 {[%emt 0:03:30]} Bg7 {[%emt 0:01:07]} 5. Be2 {[%emt 0:00:38]} O-O {[%emt 0:00:59]} 6. O-O {[%emt 0:00:53]} b6 {[%emt 0:02:10]} 7. a4 {[%emt 0:00:59]} Bb7 {[%emt 0:05:50]} 8. c3 {[%emt 0:00:45]} d6 {[%emt 0:03:00]} 9. h3 {[%emt 0:00:21]} Nbd7 {[%emt 0:01:50][%cal Bb8d7,Bd7f6,Bf6e4][%mdl 32]} 10. Bh2 {[%emt 0:00:23]} a6 {[%emt 0:07:28]} 11. Re1 {[%emt 0:01:46]} Ne4 {[%emt 0:03:20]} 12. Nfd2 {[%emt 0:00:51] The position is equal.} Ndf6 {[%emt 0:06:35]} 13. Nxe4 {[%emt 0:01:57]} Nxe4 {[%emt 0:00:22]} 14. f3 {[%emt 0:04:02]} Nf6 {[%emt 0:01:10]} 15. e4 {[%emt 0:00:11]} Nd7 {[%emt 0:05:10]} 16. d5 {[%emt 0:03:00]} b5 $1 {[%emt 0:12:58]} 17. axb5 {[%emt 0:02:07]} Qb6 {[%emt 0:02:00]} 18. Na3 {[%emt 0:09:35]} axb5 {[%emt 0:11:36]} 19. Bxb5 {[%emt 0:11:56]} (19. Kh1 $11) 19... Rxa3 $1 $17 {[%emt 0:04:08]} 20. Bxd7 {[%emt 0:01:16] [#]} (20. Rxa3 $15 c4+ (20... Qxb5 21. Qb3 $15) 21. Kh1 Qxb5 22. b4) 20... Rxa1 $1 {[%emt 0:03:12]} 21. Qxa1 {[%emt 0:00:07]} Ra8 {[%emt 0:00:30]} 22. Qb1 {[%emt 0:03:22] [#]} c4+ {[%emt 0:03:15]} ({Better is} 22... Qb3 $1 $17 {...Ra2 is the strong threat.} 23. Rc1 Ra2) 23. Kh1 {[%emt 0:00:17]} Qc7 {[%emt 0:00:13]} 24. Bb5 {[%emt 0:02:35]} Ra5 {[%emt 0:01:00]} 25. Be8 {[%emt 0:03:09]} Qc8 {[%emt 0:05:59]} 26. Bc6 {[%emt 0:03:03]} Bxc6 {[%emt 0:00:32]} 27. dxc6 {[%emt 0:00:04]} Qxc6 {[%emt 0:00:10]} 28. e5 {[%emt 0:06:27] Black keeps a firm grip on the game.} dxe5 {[%emt 0:02:12] Black is more active.} 29. b4 {[%emt 0:00:40]} cxb3 {[%emt 0:03:09]} 30. Qxb3 {[%emt 0:00:05]} Rb5 $36 {[%emt 0:07:39][%mdl 2048] Black is in control.} 31. Qa4 {[%emt 0:10:01]} (31. Qc2 $17) 31... Qxc3 $19 {[%emt 0:01:04]} 32. Qa8+ {[%emt 0:00:19]} Bf8 {[%emt 0:00:07]} 33. Rd1 {[%emt 0:00:06]} Ra5 {[%emt 0:00:11]} 34. Qd8 {[%emt 0:07:07]} Ra1 {[%emt 0:01:14]} 35. Bg3 {[%emt 0:00:05]} e4 {[%emt 0:01:25]} 36. Be1 $2 {[%emt 0:04:08]} (36. Rxa1 Qxa1+ 37. Kh2) 36... Rxd1 {[%emt 0:00:51]} 37. Qxd1 {[%emt 0:00:05][%mdl 4096] Endgame. KQB-KQB} Qc4 {[%emt 0:00:42] White must now prevent ...Qf1+.} 38. fxe4 {[%emt 0:00:39]} Qxe4 {[%emt 0:00:40]} 39. Bc3 {[%emt 0:00:04]} h5 {[%emt 0:00:41]} 40. Qf3 $2 {[%emt 0:00:34]} (40. Qd8) 40... Qxf3 {[%emt 0:00:42]} 41. gxf3 {[%emt 0:30:10] KB-KB} Bh6 {[%emt 0:30:28]} 42. Kg2 {[%emt 0:06:10]} Bf4 {[%emt 0:00:00]} 43. Kf2 {[%emt 0:00:00]} f6 {[%emt 0:00:00]} (43... e5 $142 44. Ke2 Kf8) 44. Ke2 {[%emt 0:00:00]} Kf7 {[%emt 0:00:00]} 45. Kd3 {[%emt 0:00:00]} e5 {[%emt 0:00:00]} 46. Ba5 {[%emt 0:00:00]} Ke6 {[%emt 0:00:00]} 47. Ke4 {[%emt 0:00:00]} f5+ {[%emt 0:00:00]} (47... g5 $142 48. Kd3 Bc1) 48. Kd3 {[%emt 0:00:00]} Kd5 {[%emt 0:00:00]} 49. h4 {[%emt 0:00:00]} e4+ {[%emt 0:00:00] Black mates.} 50. Ke2 {[%emt 0:00:00]} Bd6 {[%emt 0:00:00]} 51. Bd8 {[%emt 0:00:00]} Ke6 {[%emt 0:00:00]} 52. Bb6 {[%emt 0:07:55]} Be7 {[%emt 0:00:00]} 53. Bf2 {[%emt 0:00:10]} Ke5 {[%emt 0:00:00]} 54. Bg3+ {[%emt 0:00:17]} f4 {[%emt 0:00:00]} 55. Be1 {[%emt 0:00:04]} e3 {[%emt 0:00:00] Weighted Error Value: White=0.54/Black=0.23 (precise) .  Mistake:       	White=6     	Black=1      Inaccurate:     	---       	Black=2      OK:         	White=9     	Black=7      Best:        	---       	Black=7      Strong:       	---       	Black=3} 0-1

[Event "Mitropa Cup Women 2024"]
[Site "Apolda"]
[Date "2024.02.17"]
[Round "3.10"]
[White "Sankova, Stella"]
[Black "Schippke, Manon"]
[Result "0-1"]
[ECO "B30"]
[WhiteElo "2124"]
[BlackElo "2162"]
[Annotator "RC"]
[PlyCount "56"]
[EventDate "2024.02.15"]
[EventType "team-tourn"]
[EventCountry "GER"]
[SourceTitle "playchess.com"]
[Source "ChessBase"]
[SourceQuality "1"]
[WhiteTeam "Slovakia"]
[BlackTeam "France"]
[WhiteTeamCountry "SVK"]
[BlackTeamCountry "FRA"]
[TimeControl "40/5400+30:1800+30"]

1. e4 {[%emt 0:00:03]} c5 {[%emt 0:00:10]} 2. Nf3 {[%emt 0:00:05]} Nc6 {[%emt 0:00:03]} 3. Bb5 {[%emt 0:00:19]} e6 {[%emt 0:00:04]} 4. Bxc6 {[%emt 0:00:05]} bxc6 {[%emt 0:00:04]} 5. b3 {[%emt 0:00:17]} Ne7 {[%emt 0:02:08]} 6. Bb2 {[%emt 0:00:24]} Ng6 {[%emt 0:03:06]} 7. h4 {[%emt 0:00:33]} h5 {[%emt 0:00:47]} 8. e5 {[%emt 0:00:23]} Be7 {[%emt 0:01:13]} 9. Nc3 {[%emt 0:01:49]} Qc7 {[%emt 0:19:55]} 10. Ne4 {[%emt 0:01:32]} c4 {[%emt 0:05:02]} 11. bxc4 {[%emt 0:04:44]} c5 {[%emt 0:00:03]} 12. O-O {[%emt 0:15:13]} Qb7 {[%emt 0:10:03]} 13. Nxc5 {[%emt 0:11:47]} Qxb2 {[%emt 0:07:12]} 14. Nb3 {[%emt 0:01:01]} O-O {[%emt 0:05:08]} 15. Re1 {[%emt 0:03:37]} Bb7 {[%emt 0:04:12]} 16. Nfd4 {[%emt 0:04:24]} Qa3 {[%emt 0:02:45]} 17. g3 {[%emt 0:10:09]} d6 {[%emt 0:04:48]} 18. f4 {[%emt 0:06:54]} dxe5 {[%emt 0:00:20]} 19. fxe5 {[%emt 0:00:11]} Rad8 {[%emt 0:04:18]} 20. c3 {[%emt 0:01:42]} Qa6 {[%emt 0:00:31]} 21. d3 {[%emt 0:00:59]} f6 {[%emt 0:04:13]} 22. exf6 {[%emt 0:02:07]} Rxf6 {[%emt 0:00:05]} 23. Qxh5 {[%emt 0:01:57]} e5 {[%emt 0:02:09]} 24. Nf5 {[%emt 0:00:57]} Qc6 {[%emt 0:03:36]} 25. Re4 {[%emt 0:01:12]} Qb6+ {[%emt 0:00:55]} 26. c5 {[%emt 0:01:57]} Bxc5+ {[%emt 0:00:09]} 27. Nxc5 {[%emt 0:00:27]} Qxc5+ {[%emt 0:00:03]} 28. d4 {[%emt 0:00:11]} Qxc3 {[%emt 0:00:40]} 0-1

[Event "Mitropa Cup Women 2024"]
[Site "Apolda"]
[Date "2024.02.17"]
[Round "3.11"]
[White "Navrotescu, Andreea"]
[Black "Sevcikova, Lucia"]
[Result "1-0"]
[ECO "D46"]
[WhiteElo "2222"]
[BlackElo "2007"]
[Annotator "RC"]
[PlyCount "85"]
[EventDate "2024.02.15"]
[EventType "team-tourn"]
[EventCountry "GER"]
[SourceTitle "playchess.com"]
[Source "ChessBase"]
[SourceQuality "1"]
[WhiteTeam "France"]
[BlackTeam "Slovakia"]
[WhiteTeamCountry "FRA"]
[BlackTeamCountry "SVK"]
[TimeControl "40/5400+30:1800+30"]

1. d4 {[%emt 0:00:04]} d5 {[%emt 0:00:05]} 2. c4 {[%emt 0:00:05]} c6 {[%emt 0:00:04]} 3. Nf3 {[%emt 0:00:06]} Nf6 {[%emt 0:00:05]} 4. Nc3 {[%emt 0:00:08]} e6 {[%emt 0:00:07]} 5. e3 {[%emt 0:00:08]} Nbd7 {[%emt 0:00:07]} 6. Qc2 {[%emt 0:00:12]} Bd6 {[%emt 0:00:26]} 7. Bd3 {[%emt 0:00:13]} dxc4 {[%emt 0:00:54]} 8. Bxc4 {[%emt 0:00:04]} b5 {[%emt 0:00:59]} 9. Be2 {[%emt 0:00:25]} Bb7 {[%emt 0:04:18]} 10. O-O {[%emt 0:01:33]} O-O {[%emt 0:01:51]} 11. e4 {[%emt 0:00:34]} e5 {[%emt 0:06:01]} 12. dxe5 {[%emt 0:00:49]} Nxe5 {[%emt 0:01:21]} 13. Nd4 {[%emt 0:00:37]} Neg4 {[%emt 0:13:24]} 14. Nf5 {[%emt 0:03:41]} Bxh2+ {[%emt 0:04:39]} 15. Kh1 {[%emt 0:00:06]} Bc7 {[%emt 0:05:51]} 16. Bg5 {[%emt 0:01:02]} h6 {[%emt 0:12:35]} 17. Bh4 {[%emt 0:33:44]} g5 {[%emt 0:06:06]} 18. f3 {[%emt 0:03:04]} Ne3 {[%emt 0:07:29]} 19. Nxe3 {[%emt 0:01:40]} gxh4 {[%emt 0:00:10]} 20. f4 {[%emt 0:03:37]} b4 {[%emt 0:10:18]} 21. Na4 {[%emt 0:03:00]} Qd4 {[%emt 0:00:36]} 22. Nf5 {[%emt 0:00:26]} Qxe4 {[%emt 0:01:34]} 23. Bd3 {[%emt 0:00:30]} Qe8 {[%emt 0:02:05]} 24. Nxh6+ {[%emt 0:02:40]} Kh8 {[%emt 0:01:47]} 25. Nc5 {[%emt 0:07:49]} Nh5 {[%emt 0:05:03]} 26. Rf3 {[%emt 0:15:22]} Bxf4 {[%emt 0:05:32]} 27. Rxf4 {[%emt 0:03:50]} Nxf4 {[%emt 0:00:13]} 28. Qf2 {[%emt 0:02:31]} Qe5 {[%emt 0:07:20]} 29. Qxh4 {[%emt 0:05:05]} Qh5 {[%emt 0:00:47]} 30. Qxh5 {[%emt 0:00:21]} Nxh5 {[%emt 0:00:04]} 31. Nxb7 {[%emt 0:00:07]} Nf4 {[%emt 0:02:11]} 32. Bc4 {[%emt 0:02:11]} Kg7 {[%emt 0:00:43]} 33. Nxf7 {[%emt 0:02:59]} Rae8 {[%emt 0:01:32]} 34. Nbd6 {[%emt 0:00:32]} Rb8 {[%emt 0:00:33]} 35. Re1 {[%emt 0:02:13]} Ng6 {[%emt 0:00:32]} 36. Ng5 {[%emt 0:02:13]} Rf6 {[%emt 0:00:30]} 37. Kg1 {[%emt 0:01:23]} a5 {[%emt 0:01:08]} 38. Nde4 {[%emt 0:01:25]} Re8 {[%emt 0:00:00]} 39. Rd1 {[%emt 0:00:43]} Rf5 {[%emt 0:00:23]} 40. Nd6 {[%emt 0:00:50]} Rxg5 {[%emt 0:00:12]} 41. Nxe8+ {[%emt 0:30:08]} Kf8 {[%emt 0:30:14]} 42. Nd6 {[%emt 0:00:52]} Ne5 {[%emt 0:00:29]} 43. Be2 {[%emt 0:00:41]} 1-0

[Event "Mitropa Cup Women 2024"]
[Site "Apolda"]
[Date "2024.02.17"]
[Round "3.12"]
[White "Sekova, Olivia"]
[Black "Blanquet, Camille"]
[Result "1/2-1/2"]
[ECO "B15"]
[WhiteElo "2054"]
[BlackElo "2023"]
[Annotator "NA RC"]
[PlyCount "61"]
[EventDate "2024.02.15"]
[EventType "team-tourn"]
[EventCountry "GER"]
[SourceTitle "playchess.com"]
[Source "ChessBase"]
[SourceQuality "1"]
[WhiteTeam "Slovakia"]
[BlackTeam "France"]
[WhiteTeamCountry "SVK"]
[BlackTeamCountry "FRA"]
[TimeControl "40/5400+30:1800+30"]

1. e4 {[%emt 0:00:06]} c6 {[%emt 0:00:06]} 2. d4 {[%emt 0:00:11]} d5 {[%emt 0:00:06]} 3. Nc3 {[%emt 0:00:09]} dxe4 {[%emt 0:00:07]} 4. Nxe4 {[%emt 0:00:07]} Nf6 {[%emt 0:00:07]} 5. Nxf6+ {[%emt 0:00:10]} exf6 {[%emt 0:00:05]} 6. Bc4 {[%emt 0:00:55]} Bd6 {[%emt 0:03:03]} 7. Ne2 {[%emt 0:01:00]} O-O {[%emt 0:03:42]} 8. O-O {[%emt 0:00:31]} Re8 {[%emt 0:04:19]} 9. Ng3 {[%emt 0:01:59]} Bc7 {[%emt 0:07:03]} 10. Qh5 {[%emt 0:02:02]} Be6 {[%emt 0:03:57]} 11. Bd3 {[%emt 0:00:23]} g6 {[%emt 0:03:42]} 12. Qh4 {[%emt 0:04:52]} Nd7 {[%emt 0:03:15]} 13. Bh6 {[%emt 0:03:08]} Bd6 {[%emt 0:07:02]} 14. Rfe1 {[%emt 0:05:12]} Be7 {[%emt 0:02:28]} 15. c4 {[%emt 0:20:53]} f5 {[%emt 0:03:21]} 16. Qf4 {[%emt 0:00:18]} Bf6 {[%emt 0:01:10]} 17. d5 {[%emt 0:06:36]} cxd5 {[%emt 0:03:50]} 18. cxd5 {[%emt 0:00:08]} Bxd5 {[%emt 0:01:18]} 19. Rxe8+ {[%emt 0:00:46]} Qxe8 {[%emt 0:00:06]} 20. Nxf5 {[%emt 0:02:50]} Qe5 {[%emt 0:08:04]} 21. Qxe5 {[%emt 0:17:34]} Nxe5 {[%emt 0:00:10]} 22. Ne3 {[%emt 0:00:04]} Bc6 {[%emt 0:02:35]} 23. Be2 {[%emt 0:01:20]} Rd8 {[%emt 0:03:26]} 24. Rd1 {[%emt 0:00:28]} Rxd1+ {[%emt 0:01:57]} 25. Nxd1 {[%emt 0:00:08]} Nd7 {[%emt 0:00:56]} 26. b3 {[%emt 0:01:01]} Be4 {[%emt 0:03:40]} 27. Ne3 {[%emt 0:02:21]} Bd4 {[%emt 0:03:35]} 28. Bf4 {[%emt 0:03:24]} Kg7 {[%emt 0:01:19]} 29. Nc4 {[%emt 0:01:59]} Bd5 {[%emt 0:02:11]} 30. Be3 {[%emt 0:00:32]} Bxe3 {[%emt 0:01:12]} 31. Nxe3 {[%emt 0:01:33]} 1/2-1/2